Workbook

Sheet паспорт
A1: ПАТ "УКРТРАНСГАЗ" | G1: ПАСПОРТ ФІЗИКО-ХІМІЧНИХ ПОКАЗНИКІВ ПРИРОДНОГО ГАЗУ № 131
A2: Філія "УМГ "КИЇВТРАНСГАЗ" | G2: переданого Диканським ЛВУМГ та прийнятого ПАТ "Харківгаз"
A3: Решетилівський п/м Диканське ЛВУМГ | G3: Маршрут № 131
A4: Вимірювальна хіміко-аналітична лабораторія
A5: Свідоцтво № 123/15 чинно до 31.12.2018 р. | K5: по газопроводу "ШЕБЕЛИНКА-ДИКАНЬКА-КИЇВ" | V5: за період з | X5: 2017-05-01 | Z5: по | AA5: 2017-05-30
A7: Число місяця | B7: Компонентний склад, % мол. | N7: Фізико-хімічні показники газу обчислені на основі компонентного складу, 101,325 кПа | X7: Температура точки роси за вологою (Р = 3.92 МПа), ºС | Y7: Температура точки роси за вуглеводнями, ºС | Z7: Вміст сірководню, г/м3 | AA7: Вміст меркаптанової сірки, г/м3 | AB7: Вміст механічних домішок, г/м3
N8: Густина абсолютна, кг/м3,при 20 ºС, | O8: Температура вимірювання/згоряння при 20/25°С
B9: метан, С1 | C9: етан, С2 | D9: пропан, С3 | E9: ізо-бутан, і-С4 | F9: н-бутан, н-С4 | G9: нео-пентан, нео-С5 | H9: ізо-пентан, і-С5 | I9: н-пентан, н-С5 | J9: гексани та вищі, С6+ | K9: кисень, О2 | L9: азот, N2 | M9: діоксид вуглецю, CО2 | O9: Теплота згоряння нижча | R9: Теплота згоряння вища | U9: Число Воббе вище
O10: ккал/м3 | P10: МДж/м3 | Q10: кВт⋅год/м3 | R10: ккал/м3 | S10: МДж/м3 | T10: кВт⋅год/м3 | U10: ккал/м3 | V10: МДж/м3 | W10: кВт⋅год/м3
A11: 1 | O11: 8350 | P11: 34.96 | Q11: 9.711111111 | R11: 9250 | S11: 38.73 | T11: 10.75833333 | AC11: =SUM(B11:M11)+$K$42+$N$42 -> 0
A12: 2 | O12: 8350 | P12: 34.96 | Q12: 9.711111111 | R12: 9250 | S12: 38.73 | T12: 10.75833333 | AC12: 0
A13: 3 | O13: 8350 | P13: 34.96 | Q13: 9.711111111 | R13: 9250 | S13: 38.73 | T13: 10.75833333 | AC13: 0 | AD13: =IF(AC13=100,"ОК"," ") -> 
A14: 4 | O14: 8350 | P14: 34.96 | Q14: 9.711111111 | R14: 9250 | S14: 38.73 | T14: 10.75833333 | AC14: 0 | AD14: =IF(AC14=100,"ОК"," ") -> 
A15: 5 | O15: 8350 | P15: 34.96 | Q15: 9.711111111 | R15: 9250 | S15: 38.73 | T15: 10.75833333 | AC15: 0
A16: 6 | O16: 8350 | P16: 34.96 | Q16: 9.711111111 | R16: 9250 | S16: 38.73 | T16: 10.75833333 | AC16: 0
A17: 7 | O17: 8350 | P17: 34.96 | Q17: 9.711111111 | R17: 9250 | S17: 38.73 | T17: 10.75833333 | AC17: 0
A18: 8 | O18: 8350 | P18: 34.96 | Q18: 9.711111111 | R18: 9250 | S18: 38.73 | T18: 10.75833333 | AC18: 0
A19: 9 | O19: 8350 | P19: 34.96 | Q19: 9.711111111 | R19: 9250 | S19: 38.73 | T19: 10.75833333 | AC19: 0
A20: 10 | O20: 8350 | P20: 34.96 | Q20: 9.711111111 | R20: 9250 | S20: 38.73 | T20: 10.75833333 | X20: 25 | Y20: 7.2 | AC20: 0
A21: 11 | O21: 8350 | P21: 34.96 | Q21: 9.711111111 | R21: 9250 | S21: 38.73 | T21: 10.75833333 | AC21: 0
A22: 12 | B22: 92.4226 | C22: 4.059 | D22: 1.0042 | E22: 0.1267 | F22: 0.2085 | G22: 0.0051 | H22: 0.0594 | I22: 0.0492 | J22: 0.1331 | K22: 0.0048 | L22: 1.4001 | M22: 0.5274 | N22: 0.7294 | O22: 8340 | P22: 34.92 | Q22: 9.7 | R22: 9239 | S22: 38.68 | T22: 10.74444444 | U22: 11873 | V22: 49.71 | W22: 13.80833333 | AC22: 100.0001
A23: 13 | O23: 8340 | P23: 34.92 | Q23: 9.7 | R23: 9239 | S23: 38.68 | T23: 10.74444444 | AC23: 0
A24: 14 | O24: 8340 | P24: 34.92 | Q24: 9.7 | R24: 9239 | S24: 38.68 | T24: 10.74444444 | AC24: 0
A25: 15 | O25: 8340 | P25: 34.92 | Q25: 9.7 | R25: 9239 | S25: 38.68 | T25: 10.74444444 | AC25: 0
A26: 16 | O26: 8340 | P26: 34.92 | Q26: 9.7 | R26: 9239 | S26: 38.68 | T26: 10.74444444 | X26: 27.4 | Y26: 12.2 | AB26: відсут. | AC26: 0
A27: 17 | O27: 8340 | P27: 34.92 | Q27: 9.7 | R27: 9239 | S27: 38.68 | T27: 10.74444444 | AC27: 0
A28: 18 | B28: 92.3203 | C28: 4.087 | D28: 0.9841 | E28: 0.1282 | F28: 0.2109 | G28: 0.0043 | H28: 0.0597 | I28: 0.0501 | J28: 0.1582 | K28: 0.0046 | L28: 1.4219 | M28: 0.5707 | N28: 0.7308 | O28: 8343 | P28: 34.93 | Q28: 9.702777778 | R28: 9241 | S28: 38.69 | T28: 10.74722222 | U28: 11866 | V28: 49.68 | W28: 13.8 | Z28: <0,006 | AA28: <0,02 | AC28: 100 | AD28: ОК
A29: 19 | O29: 8343 | P29: 34.93 | Q29: 9.702777778 | R29: 9241 | S29: 38.69 | T29: 10.74722222 | AC29: 0
A30: 20 | O30: 8343 | P30: 34.93 | Q30: 9.702777778 | R30: 9241 | S30: 38.69 | T30: 10.74722222 | AC30: 0 | AD30: =IF(AC30=100,"ОК"," ") -> 
A31: 21 | O31: 8343 | P31: 34.93 | Q31: 9.702777778 | R31: 9241 | S31: 38.69 | T31: 10.74722222 | AC31: 0
A32: 22 | O32: 8343 | P32: 34.93 | Q32: 9.702777778 | R32: 9241 | S32: 38.69 | T32: 10.74722222 | AC32: 0
A33: 23 | O33: 8343 | P33: 34.93 | Q33: 9.702777778 | R33: 9241 | S33: 38.69 | T33: 10.74722222 | X33: 32.2 | Y33: 13 | AC33: 0 | AD33: =IF(AC33=100,"ОК"," ") -> 
A34: 24 | O34: 8343 | P34: 34.93 | Q34: 9.702777778 | R34: 9241 | S34: 38.69 | T34: 10.74722222 | AC34: 0
A35: 25 | B35: 92.2641 | C35: 4.0682 | D35: 0.9938 | E35: 0.1272 | F35: 0.2092 | G35: 0.0053 | H35: 0.0587 | I35: 0.0485 | J35: 0.1612 | K35: 0.0048 | L35: 1.4506 | M35: 0.6085 | N35: 0.7314 | O35: 8338 | P35: 34.91 | Q35: 9.697222222 | R35: 9236 | S35: 38.67 | T35: 10.74166667 | U35: 11852 | V35: 49.62 | W35: 13.78333333 | AC35: 100.0001
A36: 26 | O36: 8338 | P36: 34.91 | Q36: 9.697222222 | R36: 9236 | S36: 38.67 | T36: 10.74166667 | AC36: 0
A37: 27 | O37: 8338 | P37: 34.91 | Q37: 9.697222222 | R37: 9236 | S37: 38.67 | T37: 10.74166667 | AC37: 0
A38: 28 | O38: 8338 | P38: 34.91 | Q38: 9.697222222 | R38: 9236 | S38: 38.67 | T38: 10.74166667 | AC38: 0
A39: 29 | O39: 8338 | P39: 34.91 | Q39: 9.697222222 | R39: 9236 | S39: 38.67 | T39: 10.74166667 | X39: 32.4 | Y39: 13.1 | AC39: 0
A40: 30 | O40: 8338 | P40: 34.91 | Q40: 9.697222222 | R40: 9236 | S40: 38.67 | T40: 10.74166667 | AC40: 0
A41: 31 | B41: 92.2846 | C41: 4.0637 | D41: 1.0063 | E41: 0.1282 | F41: 0.2104 | G41: 0.0046 | H41: 0.059 | I41: 0.0488 | J41: 0.1545 | K41: 0.005 | L41: 1.4349 | M41: 0.6 | N41: 0.7312 | O41: 8338 | P41: 34.91 | Q41: 9.697222222 | R41: 9239 | S41: 38.68 | T41: 10.74444444 | U41: 11856 | V41: 49.64 | W41: 13.78888889 | AC41: 100 | AD41: ОК
A42: Рівень одоризації відповідає чинним нормативним документам | O42: =SUMPRODUCT(O11:O41,' розрахунок'!D7:D37)/' розрахунок'!D38 -> 8343.359488 | P42: =SUMPRODUCT(P11:P41,' розрахунок'!D7:D37)/' розрахунок'!D38 -> 34.932581 | Q42: =SUMPRODUCT(Q11:Q41,' розрахунок'!D7:D37)/' розрахунок'!D38 -> 9.703494722 | R42: =SUMPRODUCT(R11:R41,' розрахунок'!D7:D37)/' розрахунок'!D38 -> 9242.230254 | S42: =SUMPRODUCT(S11:S41,' розрахунок'!D7:D37)/' розрахунок'!D38 -> 38.69533908 | T42: =SUMPRODUCT(T11:T41,' розрахунок'!D7:D37)/' розрахунок'!D38 -> 10.7487053
H43: Середньозважене значення теплоти згоряння:
B46: Заступник начальника управління Диканського ЛВУМГ | O46: Герасименко І.М. | V46: 01.06.17р.
C47: Підрозділу підприємства, якому підпорядкована лабораторія | O47: прізвище | R47: підпис | V47: дата
B48: Завідувач лабораторією | O48: Славінська А.В. | V48: =V46 -> 01.06.17р.
C49: Лабораторія, де здійснювалось вимірювання газу | O49: прізвище | R49: підпис | V49: дата
B50: Начальник служби ГВ та М | O50: Левадний С.А. | V50: =V46 -> 01.06.17р.
C51: Підрозділу, відповідального за облік газу за маршрутом | O51: прізвище | R51: підпис | V51: дата

Sheet розрахунок
A2: Додаток до Паспорту фізико-хімічних показників природного газу по маршруту № 131
A4: Число місяця | B4: Теплота згоряння вища, МДж/м3 | C4: Харківська область | D4: Загальний обсяг газу, м3
C5: Обсяг газу переданого за добу, м3
C6: ГРС Киселі
A7: 1 | B7: =паспорт!S11 -> 38.73 | C7: 194.89 | D7: =SUM(C7:C7) -> 194.89
A8: 2 | B8: =паспорт!S12 -> 38.73 | C8: 191.13 | D8: 191.13
A9: 3 | B9: =паспорт!S13 -> 38.73 | C9: 201.66 | D9: 201.66
A10: 4 | B10: =паспорт!S14 -> 38.73 | C10: 170.67 | D10: 170.67
A11: 5 | B11: =паспорт!S15 -> 38.73 | C11: 206.58 | D11: 206.58
A12: 6 | B12: =паспорт!S16 -> 38.73 | C12: 269.41 | D12: 269.41
A13: 7 | B13: =паспорт!S17 -> 38.73 | C13: 255.4 | D13: 255.4
A14: 8 | B14: =паспорт!S18 -> 38.73 | C14: 222.1 | D14: 222.1
A15: 9 | B15: =паспорт!S19 -> 38.73 | C15: 220.84 | D15: 220.84
A16: 10 | B16: =паспорт!S20 -> 38.73 | C16: 271.65 | D16: 271.65
A17: 11 | B17: =паспорт!S21 -> 38.73 | C17: 446.92 | D17: 446.92
A18: 12 | B18: =паспорт!S22 -> 38.68 | C18: 621.17 | D18: 621.17
A19: 13 | B19: =паспорт!S23 -> 38.68 | C19: 693.89 | D19: 693.89
A20: 14 | B20: =паспорт!S24 -> 38.68 | C20: 663.32 | D20: 663.32
A21: 15 | B21: =паспорт!S25 -> 38.68 | C21: 462.51 | D21: 462.51
A22: 16 | B22: =паспорт!S26 -> 38.68 | C22: 328.24 | D22: 328.24
A23: 17 | B23: =паспорт!S27 -> 38.68 | C23: 317.22 | D23: 317.22
A24: 18 | B24: =паспорт!S28 -> 38.69 | C24: 503.23 | D24: 503.23
A25: 19 | B25: =паспорт!S29 -> 38.69 | C25: 573.13 | D25: 573.13
A26: 20 | B26: =паспорт!S30 -> 38.69 | C26: 609.6 | D26: 609.6
A27: 21 | B27: =паспорт!S31 -> 38.69 | C27: 505.83 | D27: 505.83
A28: 22 | B28: =паспорт!S32 -> 38.69 | C28: 439.55 | D28: 439.55
A29: 23 | B29: =паспорт!S33 -> 38.69 | C29: 279.96 | D29: 279.96
A30: 24 | B30: =паспорт!S34 -> 38.69 | C30: 252.09 | D30: 252.09
A31: 25 | B31: =паспорт!S35 -> 38.67 | C31: 177.32 | D31: 177.32
A32: 26 | B32: =паспорт!S36 -> 38.67 | C32: 160.18 | D32: 160.18
A33: 27 | B33: =паспорт!S37 -> 38.67 | C33: 203.2 | D33: 203.2
A34: 28 | B34: =паспорт!S38 -> 38.67 | C34: 199.04 | D34: 199.04
A35: 29 | B35: =паспорт!S39 -> 38.67 | C35: 156.79 | D35: 156.79
A36: 30 | B36: =паспорт!S40 -> 38.67 | C36: 123.99 | D36: 123.99
A37: 31 | B37: =паспорт!S41 -> 38.68 | C37: 117.63 | D37: 117.63
A38: Загальний обсяг газу, м3 | C38: =SUM(C7:C37) -> 10039.14 | D38: =SUM(D7:D37) -> 10039.14
A39: Енергія, МДж | C39: =SUMPRODUCT(B7:B37,C7:C37) -> 388467.9264 | D39: =SUMPRODUCT(B7:B37,D7:D37) -> 388467.9264
A40: Теплота згоряння (середньозважене значення за місяць), МДж/м³ | C40: =C39/C38 -> 38.69533908 | D40: =D39/D38 -> 38.69533908
A41: Теплота згоряння (середньозважене значення за місяць), ккал/м³ | C41: =C40*238.8459 -> 9242.223089 | D41: =D40*238.8459 -> 9242.223089
A42: Теплота згоряння (середньозважене значення за місяць), кВт*год./м³ | C42: =C40/3.6 -> 10.7487053 | D42: =D40/3.6 -> 10.7487053

Sheet додаток
A2: Додаток до Паспорту фізико-хімічних показників природного газу №131
A4: Область | B4: ГРС, прямий споживач | C4: Cередньозважене значення вищої теплоти згоряння
C5: МДж/м³ | D5: ккал/м³ | E5: кВт*год./м³
A6: Харківська область | B6: ГРС Киселі | C6: =' розрахунок'!C40 -> 38.69533908 | D6: =' розрахунок'!C41 -> 9242.223089 | E6: =' розрахунок'!C42 -> 10.7487053
A7: Середньозважене значення вищої теплоти згоряння по маршруту № 131 | C7: =' розрахунок'!D40 -> 38.69533908 | D7: =' розрахунок'!D41 -> 9242.223089 | E7: =' розрахунок'!D42 -> 10.7487053
A11: Заступник начальника управління Диканського ЛВУМГ | D11: Герасименко І.М. | F11: =паспорт!V46 -> 01.06.17р.
A12: Підрозділу підприємства, якому підпорядкована лабораторія | D12: прізвище | E12: підпис | F12: дата
A13: Завідувач лабораторією | D13: Славінська А.В. | F13: =F11 -> 01.06.17р.
A14: Лабораторія, де здійснювалось вимірювання газу | D14: прізвище | E14: підпис | F14: дата
A15: Начальник служби ГВ та М | D15: Левадний С.А. | F15: =F11 -> 01.06.17р.
A16: Підрозділу, відповідального за облік газу за маршрутом | D16: прізвище | E16: підпис | F16: дата

Sheet variablesList (hidden)
A1: 3 | B1: x:\gaysin | C1: 10, 11, 24, 25, 127, 128, 132, 180, 207, 215 | D1: x:\
B2: x:\Illinci
B3: x:\Talne
